[Event "December 19 Late 2023"]
[Site "https://www.chess.com"]
[Date "2023.12.19"]
[Round "3"]
[White "Srinath, Rao S.V."]
[Black "Ozen, Metehan"]
[Result "1/2-1/2"]
[Board "85"]
[TimeControl "180+1"]
[WhiteFideId "5028876"]
[BlackFideId "34596054"]
[WhiteElo "2198"]
[BlackElo "1710"]
[WhiteTeam "IND"]
[BlackTeam "TUR"]
[WhiteClock "0:00:08"]
[BlackClock "0:00:04"]

1. d4 {[%clk 0:03:00]}  Nf6 {[%clk 0:02:58]} 2. Nf3 {[%clk 0:03:00]}  e6 {[%clk 0:02:56]} 3. g3 {[%clk 0:03:00]}  b5 {[%clk 0:02:55]} 4. Bg2 {[%clk 0:03:00]}  Bb7 {[%clk 0:02:55]} 5. O-O {[%clk 0:03:00]}  Be7 {[%clk 0:02:53]} 6. a4 {[%clk 0:03:00]}  b4 {[%clk 0:02:53]} 7. c4 {[%clk 0:03:00]}  bxc3 {[%clk 0:02:52]} 8. Nxc3 {[%clk 0:02:59]}  O-O {[%clk 0:02:53]} 9. Qc2 {[%clk 0:02:59]}  c5 {[%clk 0:02:53]} 10. dxc5 {[%clk 0:02:48]}  Bxc5 {[%clk 0:02:46]} 11. Bg5 {[%clk 0:02:48]}  Be7 {[%clk 0:02:42]} 12. Rfd1 {[%clk 0:02:45]}  d5 {[%clk 0:02:39]} 13. e4 {[%clk 0:02:39]}  Qc7 {[%clk 0:02:13]} 14. e5 {[%clk 0:02:30]}  Ne4 {[%clk 0:02:06]} 15. Bxe7 {[%clk 0:02:28]}  Qxe7 {[%clk 0:02:04]} 16. Nxe4 {[%clk 0:02:28]}  dxe4 {[%clk 0:02:05]} 17. Nd4 {[%clk 0:02:28]}  Rc8 {[%clk 0:01:54]} 18. Qe2 {[%clk 0:02:17]}  Nc6 {[%clk 0:01:43]} 19. Nxc6 {[%clk 0:01:52]}  Bxc6 {[%clk 0:01:41]} 20. Bxe4 {[%clk 0:01:52]}  Bxe4 {[%clk 0:01:36]} 21. Qxe4 {[%clk 0:01:53]}  Rab8 {[%clk 0:01:37]} 22. Rd2 {[%clk 0:01:50]}  Rb4 {[%clk 0:01:28]} 23. Qe3 {[%clk 0:01:50]}  h6 {[%clk 0:01:25]} 24. a5 {[%clk 0:01:47]}  Rcb8 {[%clk 0:01:22]} 25. Rad1 {[%clk 0:01:30]}  Rxb2 {[%clk 0:00:48]} 26. Rd7 {[%clk 0:01:30]}  Qe8 {[%clk 0:00:44]} 27. Rxa7 {[%clk 0:01:22]}  Rb1 {[%clk 0:00:43]} 28. Qd3 {[%clk 0:00:59]}  Rxd1+ {[%clk 0:00:20]} 29. Qxd1 {[%clk 0:01:00]}  Qb5 {[%clk 0:00:10]} 30. Qf3 {[%clk 0:00:40]}  Rf8 {[%clk 0:00:08]} 31. Qe4 {[%clk 0:00:31]}  Rd8 {[%clk 0:00:06]} 32. Kg2 {[%clk 0:00:30]}  g6 {[%clk 0:00:04]} 33. Qf4 {[%clk 0:00:24]}  Rf8 {[%clk 0:00:01]} 34. a6 {[%clk 0:00:20]}  Qb6 {[%clk 0:00:02]} 35. Re7 {[%clk 0:00:16]}  Qxa6 {[%clk 0:00:02]} 36. Qxh6 {[%clk 0:00:17]}  Qc6+ {[%clk 0:00:02]} 37. f3 {[%clk 0:00:16]}  Qc2+ {[%clk 0:00:01]} 38. Kh3 {[%clk 0:00:16]}  Qf5+ {[%clk 0:00:02]} 39. Kg2 {[%clk 0:00:14]}  Qxe5 {[%clk 0:00:03]} 40. Qd2 {[%clk 0:00:13]}  Qb5 {[%clk 0:00:02]} 41. Rd7 {[%clk 0:00:13]}  Qh5 {[%clk 0:00:02]} 42. h4 {[%clk 0:00:13]}  Qf5 {[%clk 0:00:02]} 43. g4 {[%clk 0:00:13]}  Qb5 {[%clk 0:00:03]} 44. Kg3 {[%clk 0:00:13]}  Qe5+ {[%clk 0:00:03]} 45. f4 {[%clk 0:00:12]}  Qc5 {[%clk 0:00:02]} 46. Rd4 {[%clk 0:00:10]}  Rb8 {[%clk 0:00:02]} 47. Rd8+ {[%clk 0:00:10]}  Rxd8 {[%clk 0:00:02]} 48. Qxd8+ {[%clk 0:00:10]}  Kg7 {[%clk 0:00:03]} 49. Qd3 {[%clk 0:00:08]}  Qg1+ {[%clk 0:00:03]} 50. Kf3 {[%clk 0:00:09]}  Qh1+ {[%clk 0:00:03]} 51. Kg3 {[%clk 0:00:09]}  Qg1+ {[%clk 0:00:03]} 52. Kf3 {[%clk 0:00:08]}  Qh1+ {[%clk 0:00:04]} 53. Kg3 {[%clk 0:00:08]}  Qg1+ {[%clk 0:00:04]} 1/2-1/2

[Event "December 19 Late 2023"]
[Site "https://www.chess.com"]
[Date "2023.12.19"]
[Round "3"]
[White "Spichkin, Alexander"]
[Black "Hajiyev, Kanan"]
[Result "0-1"]
[Board "88"]
[TimeControl "180+1"]
[WhiteFideId "4144074"]
[BlackFideId "13404148"]
[WhiteElo "1955"]
[BlackElo "2102"]
[WhiteTeam "RUS"]
[BlackTeam "AZE"]
[WhiteClock "0:01:56"]
[BlackClock "0:01:52"]

1. f4 {[%clk 0:03:00]}  b6 {[%clk 0:02:58]} 2. Nf3 {[%clk 0:02:59]}  Bb7 {[%clk 0:02:58]} 3. e3 {[%clk 0:03:00]}  g6 {[%clk 0:02:59]} 4. d3 {[%clk 0:02:59]}  Bg7 {[%clk 0:03:00]} 5. Be2 {[%clk 0:03:00]}  e6 {[%clk 0:03:00]} 6. O-O {[%clk 0:03:01]}  Ne7 {[%clk 0:03:00]} 7. Nc3 {[%clk 0:02:59]}  c5 {[%clk 0:03:01]} 8. Qe1 {[%clk 0:02:59]}  Nbc6 {[%clk 0:02:58]} 9. e4 {[%clk 0:03:00]}  a6 {[%clk 0:02:58]} 10. Qg3 {[%clk 0:03:00]}  Nd4 {[%clk 0:02:58]} 11. Bd1 {[%clk 0:03:00]}  d5 {[%clk 0:02:56]} 12. f5 {[%clk 0:02:49]}  exf5 {[%clk 0:02:49]} 13. Bg5 {[%clk 0:02:45]}  h6 {[%clk 0:02:35]} 14. Bf4 {[%clk 0:02:39]}  dxe4 {[%clk 0:02:24]} 15. Bc7 {[%clk 0:02:37]}  Qd7 {[%clk 0:02:22]} 16. dxe4 {[%clk 0:02:37]}  fxe4 {[%clk 0:02:17]} 17. Ne1 {[%clk 0:02:30]}  Nef5 {[%clk 0:02:03]} 18. Qf4 {[%clk 0:02:16]}  Ne6 {[%clk 0:02:03]} 19. Qc1 {[%clk 0:02:08]}  Qxc7 {[%clk 0:01:55]} 20. Bg4 {[%clk 0:02:03]}  Ned4 {[%clk 0:01:52]} 21. Nd1 {[%clk 0:02:00]}  h5 {[%clk 0:01:52]} 22. Bh3 {[%clk 0:01:56]}  Ne2+ {[%clk 0:01:52]} 0-1

[Event "December 19 Late 2023"]
[Site "https://www.chess.com"]
[Date "2023.12.19"]
[Round "3"]
[White "Deng, Henry"]
[Black "Atanejhad, Sahebali"]
[Result "0-1"]
[Board "90"]
[TimeControl "180+1"]
[WhiteFideId "30965454"]
[BlackFideId "12506664"]
[WhiteElo "2589"]
[BlackElo "1957"]
[WhiteTeam "USA"]
[BlackTeam "IRI"]
[WhiteClock "0:00:10"]
[BlackClock "0:00:10"]

1. e4 {[%clk 0:03:00]}  c5 {[%clk 0:02:55]} 2. Nc3 {[%clk 0:03:00]}  g6 {[%clk 0:02:54]} 3. d4 {[%clk 0:03:00]}  cxd4 {[%clk 0:02:54]} 4. Qxd4 {[%clk 0:03:01]}  Nf6 {[%clk 0:02:54]} 5. Nf3 {[%clk 0:03:01]}  Nc6 {[%clk 0:02:55]} 6. Qa4 {[%clk 0:03:01]}  d6 {[%clk 0:02:55]} 7. e5 {[%clk 0:03:02]}  dxe5 {[%clk 0:02:56]} 8. Nxe5 {[%clk 0:03:03]}  Bd7 {[%clk 0:02:56]} 9. Nxd7 {[%clk 0:03:02]}  Qxd7 {[%clk 0:02:57]} 10. Be3 {[%clk 0:03:03]}  Bg7 {[%clk 0:02:57]} 11. Rd1 {[%clk 0:03:03]}  Qg4 {[%clk 0:02:57]} 12. h3 {[%clk 0:02:55]}  Qxa4 {[%clk 0:02:57]} 13. Nxa4 {[%clk 0:02:56]}  O-O {[%clk 0:02:57]} 14. g3 {[%clk 0:02:52]}  Nb4 {[%clk 0:02:56]} 15. c3 {[%clk 0:02:44]}  Nc2+ {[%clk 0:02:56]} 16. Kd2 {[%clk 0:02:45]}  Nxe3 {[%clk 0:02:56]} 17. Kxe3 {[%clk 0:02:45]}  Rad8 {[%clk 0:02:41]} 18. Bg2 {[%clk 0:02:43]}  b6 {[%clk 0:02:40]} 19. c4 {[%clk 0:02:34]}  Bh6+ {[%clk 0:02:35]} 20. Ke2 {[%clk 0:02:32]}  e6 {[%clk 0:02:31]} 21. Nc3 {[%clk 0:02:29]}  Bg7 {[%clk 0:02:29]} 22. Nb5 {[%clk 0:02:23]}  a5 {[%clk 0:02:24]} 23. b3 {[%clk 0:02:20]}  Nd7 {[%clk 0:02:22]} 24. Rd6 {[%clk 0:02:16]}  Be5 {[%clk 0:02:19]} 25. Rc6 {[%clk 0:02:15]}  Rb8 {[%clk 0:02:18]} 26. Rd1 {[%clk 0:02:11]}  Nc5 {[%clk 0:02:18]} 27. f4 {[%clk 0:02:11]}  Bf6 {[%clk 0:02:14]} 28. Rdd6 {[%clk 0:01:38]}  Bd8 {[%clk 0:02:02]} 29. Rd2 {[%clk 0:01:30]}  Bf6 {[%clk 0:01:53]} 30. Rd1 {[%clk 0:01:24]}  Rfc8 {[%clk 0:01:51]} 31. Na7 {[%clk 0:01:23]}  Rxc6 {[%clk 0:01:50]} 32. Nxc6 {[%clk 0:01:23]}  Re8 {[%clk 0:01:47]} 33. g4 {[%clk 0:01:23]}  g5 {[%clk 0:01:44]} 34. fxg5 {[%clk 0:01:21]}  Bxg5 {[%clk 0:01:45]} 35. Nd4 {[%clk 0:01:15]}  Rd8 {[%clk 0:01:39]} 36. Nb5 {[%clk 0:01:13]}  Rxd1 {[%clk 0:01:40]} 37. Kxd1 {[%clk 0:01:13]}  Kg7 {[%clk 0:01:35]} 38. Ke2 {[%clk 0:01:10]}  Kf6 {[%clk 0:01:35]} 39. Nd6 {[%clk 0:01:09]}  Bf4 {[%clk 0:01:23]} 40. Nc8 {[%clk 0:01:08]}  Bc7 {[%clk 0:01:22]} 41. Na7 {[%clk 0:01:05]}  Ke5 {[%clk 0:01:20]} 42. Nb5 {[%clk 0:01:06]}  Bd8 {[%clk 0:01:19]} 43. Kf3 {[%clk 0:00:58]}  f5 {[%clk 0:01:19]} 44. gxf5 {[%clk 0:00:57]}  exf5 {[%clk 0:01:19]} 45. Bf1 {[%clk 0:00:56]}  Ne4 {[%clk 0:01:18]} 46. Bd3 {[%clk 0:00:56]}  h5 {[%clk 0:01:16]} 47. Bc2 {[%clk 0:00:51]}  Bh4 {[%clk 0:01:09]} 48. Bd3 {[%clk 0:00:47]}  Ng5+ {[%clk 0:01:08]} 49. Kg2 {[%clk 0:00:47]}  f4 {[%clk 0:01:08]} 50. Be2 {[%clk 0:00:47]}  Ne4 {[%clk 0:01:06]} 51. Bxh5 {[%clk 0:00:46]}  Nc5 {[%clk 0:00:51]} 52. Bf3 {[%clk 0:00:44]}  Nd3 {[%clk 0:00:48]} 53. Kf1 {[%clk 0:00:41]}  Ne1 {[%clk 0:00:46]} 54. Ke2 {[%clk 0:00:41]}  Nc2 {[%clk 0:00:44]} 55. Bh1 {[%clk 0:00:34]}  Nb4 {[%clk 0:00:39]} 56. a3 {[%clk 0:00:31]}  Nc2 {[%clk 0:00:39]} 57. a4 {[%clk 0:00:31]}  Na1 {[%clk 0:00:36]} 58. Nc3 {[%clk 0:00:29]}  Nxb3 {[%clk 0:00:35]} 59. Nd5 {[%clk 0:00:30]}  Bd8 {[%clk 0:00:35]} 60. h4 {[%clk 0:00:28]}  Nd4+ {[%clk 0:00:20]} 61. Kf1 {[%clk 0:00:27]}  Nf5 {[%clk 0:00:16]} 62. h5 {[%clk 0:00:19]}  Ng3+ {[%clk 0:00:16]} 63. Kg2 {[%clk 0:00:20]}  Nxh5 {[%clk 0:00:15]} 64. Kf3 {[%clk 0:00:20]}  Ng7 {[%clk 0:00:13]} 65. Nxf4 {[%clk 0:00:20]}  Nf5 {[%clk 0:00:13]} 66. Nd5 {[%clk 0:00:19]}  Kd4 {[%clk 0:00:11]} 67. Kf4 {[%clk 0:00:19]}  Nd6 {[%clk 0:00:10]} 68. Ne3 {[%clk 0:00:15]}  Bg5+ {[%clk 0:00:09]} 69. Kxg5 {[%clk 0:00:14]}  Kxe3 {[%clk 0:00:08]} 70. Bc6 {[%clk 0:00:14]}  Nxc4 {[%clk 0:00:07]} 71. Kf6 {[%clk 0:00:15]}  Kd4 {[%clk 0:00:01]} 72. Ke6 {[%clk 0:00:15]}  Kc5 {[%clk 0:00:01]} 73. Bb5 {[%clk 0:00:14]}  Nb2 {[%clk 0:00:02]} 74. Kd7 {[%clk 0:00:13]}  Kb4 {[%clk 0:00:03]} 75. Kc7 {[%clk 0:00:10]}  Nxa4 {[%clk 0:00:04]} 76. Kc6 {[%clk 0:00:11]}  Nc3 {[%clk 0:00:04]} 77. Bd3 {[%clk 0:00:08]}  b5 {[%clk 0:00:04]} 78. Kd6 {[%clk 0:00:07]}  a4 {[%clk 0:00:05]} 79. Ke5 {[%clk 0:00:08]}  a3 {[%clk 0:00:06]} 80. Kd4 {[%clk 0:00:05]}  a2 {[%clk 0:00:06]} 81. Bxb5 {[%clk 0:00:05]}  a1=Q {[%clk 0:00:07]} 82. Bd3 {[%clk 0:00:06]}  Qb2 {[%clk 0:00:07]} 83. Ke3 {[%clk 0:00:06]}  Qc1+ {[%clk 0:00:07]} 84. Kd4 {[%clk 0:00:06]}  Qd2 {[%clk 0:00:07]} 85. Ke5 {[%clk 0:00:06]}  Nb5 {[%clk 0:00:08]} 86. Ke6 {[%clk 0:00:07]}  Qxd3 {[%clk 0:00:08]} 87. Ke7 {[%clk 0:00:08]}  Qc4 {[%clk 0:00:09]} 88. Kf6 {[%clk 0:00:08]}  Qc5 {[%clk 0:00:10]} 89. Kg6 {[%clk 0:00:08]}  Qd5 {[%clk 0:00:09]} 90. Kg7 {[%clk 0:00:09]}  Qf5 {[%clk 0:00:09]} 91. Kh8 {[%clk 0:00:08]}  Qg4 {[%clk 0:00:08]} 92. Kh7 {[%clk 0:00:09]}  Nd6 {[%clk 0:00:09]} 93. Kh8 {[%clk 0:00:10]}  Nf5 {[%clk 0:00:09]} 94. Kh7 {[%clk 0:00:10]}  Qg7# {[%clk 0:00:10]} 0-1

[Event "December 19 Late 2023"]
[Site "https://www.chess.com"]
[Date "2023.12.19"]
[Round "3"]
[White "Gurevich, Dmitry"]
[Black "Derakhshani, Borna"]
[Result "0-1"]
[Board "91"]
[TimeControl "180+1"]
[WhiteFideId "2000407"]
[BlackFideId "12518450"]
[WhiteElo "2506"]
[BlackElo "2286"]
[WhiteTeam "USA"]
[BlackTeam "ENG"]
[WhiteClock "0:00:00"]
[BlackClock "0:00:45"]

1. d4 {[%clk 0:03:00]}  d5 {[%clk 0:02:59]} 2. c4 {[%clk 0:03:00]}  c6 {[%clk 0:03:00]} 3. e3 {[%clk 0:02:59]}  Nf6 {[%clk 0:03:01]} 4. Nc3 {[%clk 0:02:59]}  Bf5 {[%clk 0:03:01]} 5. cxd5 {[%clk 0:02:58]}  cxd5 {[%clk 0:03:02]} 6. Qb3 {[%clk 0:02:57]}  Qd7 {[%clk 0:02:56]} 7. Nf3 {[%clk 0:02:56]}  Nc6 {[%clk 0:02:56]} 8. Ne5 {[%clk 0:02:55]}  Qc7 {[%clk 0:02:51]} 9. Nxd5 {[%clk 0:02:44]}  Nxd5 {[%clk 0:02:52]} 10. Qxd5 {[%clk 0:02:43]}  e6 {[%clk 0:02:53]} 11. Qb3 {[%clk 0:02:36]}  Bb4+ {[%clk 0:02:45]} 12. Bd2 {[%clk 0:02:27]}  Bxd2+ {[%clk 0:02:43]} 13. Kxd2 {[%clk 0:02:27]}  Nxe5 {[%clk 0:02:43]} 14. dxe5 {[%clk 0:02:22]}  O-O {[%clk 0:02:21]} 15. Qc3 {[%clk 0:02:21]}  Rfd8+ {[%clk 0:02:16]} 16. Ke1 {[%clk 0:02:19]}  Qb6 {[%clk 0:02:16]} 17. Rc1 {[%clk 0:02:14]}  Be4 {[%clk 0:01:58]} 18. Bc4 {[%clk 0:02:01]}  Bxg2 {[%clk 0:01:51]} 19. Rg1 {[%clk 0:02:00]}  Be4 {[%clk 0:01:48]} 20. Rg4 {[%clk 0:01:49]}  Bg6 {[%clk 0:01:48]} 21. h4 {[%clk 0:01:42]}  Rd7 {[%clk 0:01:46]} 22. Kf1 {[%clk 0:01:23]}  Rad8 {[%clk 0:01:41]} 23. Kg2 {[%clk 0:01:22]}  h5 {[%clk 0:01:35]} 24. Rf4 {[%clk 0:01:01]}  Qc6+ {[%clk 0:01:34]} 25. Kh2 {[%clk 0:00:59]}  Rd2 {[%clk 0:01:34]} 26. Bf1 {[%clk 0:00:46]}  Qxc3 {[%clk 0:01:20]} 27. Rxc3 {[%clk 0:00:45]}  Rxb2 {[%clk 0:01:18]} 28. a3 {[%clk 0:00:36]}  Rd5 {[%clk 0:01:08]} 29. Kg3 {[%clk 0:00:20]}  Rxe5 {[%clk 0:01:08]} 30. Rc8+ {[%clk 0:00:18]}  Kh7 {[%clk 0:01:08]} 31. Rd4 {[%clk 0:00:17]}  Rd5 {[%clk 0:01:03]} 32. Rdc4 {[%clk 0:00:11]}  Bd3 {[%clk 0:00:59]} 33. Bxd3+ {[%clk 0:00:08]}  Rxd3 {[%clk 0:01:00]} 34. R4c7 {[%clk 0:00:08]}  Kg6 {[%clk 0:01:00]} 35. Rf8 {[%clk 0:00:06]}  f6 {[%clk 0:01:00]} 36. Rff7 {[%clk 0:00:07]}  Kf5 {[%clk 0:00:45]} 37. Rxg7 {[%clk 0:00:00]}  e5 {[%clk 0:00:45]} 0-1

[Event "December 19 Late 2023"]
[Site "https://www.chess.com"]
[Date "2023.12.19"]
[Round "3"]
[White "Assylov, Miras"]
[Black "Storn, Justin"]
[Result "0-1"]
[Board "92"]
[TimeControl "180+1"]
[WhiteFideId "13728873"]
[BlackFideId "30922720"]
[WhiteElo "1991"]
[BlackElo "2404"]
[WhiteTeam "KAZ"]
[BlackTeam "USA"]
[WhiteClock "0:00:00"]
[BlackClock "0:00:22"]

1. b3 {[%clk 0:02:56]}  c5 {[%clk 0:02:56]} 2. Bb2 {[%clk 0:02:56]}  Nc6 {[%clk 0:02:57]} 3. Nf3 {[%clk 0:02:55]}  d6 {[%clk 0:02:56]} 4. d4 {[%clk 0:02:52]}  cxd4 {[%clk 0:02:56]} 5. Nxd4 {[%clk 0:02:53]}  Nf6 {[%clk 0:02:55]} 6. c4 {[%clk 0:02:48]}  g6 {[%clk 0:02:44]} 7. g3 {[%clk 0:02:20]}  Bg7 {[%clk 0:02:44]} 8. Nxc6 {[%clk 0:02:20]}  bxc6 {[%clk 0:02:44]} 9. Bg2 {[%clk 0:02:20]}  Qb6 {[%clk 0:02:27]} 10. O-O {[%clk 0:02:13]}  O-O {[%clk 0:02:17]} 11. Nd2 {[%clk 0:02:12]}  d5 {[%clk 0:02:05]} 12. Rc1 {[%clk 0:02:08]}  Rd8 {[%clk 0:01:58]} 13. e3 {[%clk 0:01:41]}  Bg4 {[%clk 0:01:51]} 14. Qe1 {[%clk 0:01:35]}  Rac8 {[%clk 0:01:48]} 15. Nf3 {[%clk 0:01:25]}  Ne4 {[%clk 0:01:24]} 16. Bxg7 {[%clk 0:01:23]}  Kxg7 {[%clk 0:01:25]} 17. h3 {[%clk 0:01:05]}  Be6 {[%clk 0:01:15]} 18. Nd4 {[%clk 0:01:04]}  Bd7 {[%clk 0:01:15]} 19. Bxe4 {[%clk 0:00:52]}  dxe4 {[%clk 0:01:14]} 20. Qc3 {[%clk 0:00:52]}  e5 {[%clk 0:01:13]} 21. Nc2 {[%clk 0:00:37]}  Bxh3 {[%clk 0:01:05]} 22. Qxe5+ {[%clk 0:00:36]}  Kg8 {[%clk 0:01:05]} 23. Rfd1 {[%clk 0:00:31]}  Bg4 {[%clk 0:00:36]} 24. Rxd8+ {[%clk 0:00:23]}  Qxd8 {[%clk 0:00:37]} 25. Qd4 {[%clk 0:00:03]}  Qe7 {[%clk 0:00:31]} 26. Ne1 {[%clk 0:00:02]}  Rd8 {[%clk 0:00:30]} 27. Qc3 {[%clk 0:00:00]}  h5 {[%clk 0:00:22]} 0-1

[Event "December 19 Late 2023"]
[Site "https://www.chess.com"]
[Date "2023.12.19"]
[Round "3"]
[White "Cobysters"]
[Black "Bogaudinov, Rushan"]
[Result "1-0"]
[Board "93"]
[TimeControl "180+1"]
[BlackFideId "4129288"]
[WhiteElo "2583"]
[BlackElo "1937"]
[BlackTeam "RUS"]
[WhiteClock "0:02:26"]
[BlackClock "0:00:10"]

1. c4 {[%clk 0:03:00]}  e5 {[%clk 0:02:28]} 2. Nc3 {[%clk 0:03:01]}  Nc6 {[%clk 0:02:28]} 3. g3 {[%clk 0:03:01]}  g6 {[%clk 0:02:28]} 4. Bg2 {[%clk 0:03:01]}  Bg7 {[%clk 0:02:28]} 5. e3 {[%clk 0:03:02]}  Nf6 {[%clk 0:02:28]} 6. Nge2 {[%clk 0:03:03]}  O-O {[%clk 0:02:27]} 7. O-O {[%clk 0:03:03]}  d6 {[%clk 0:02:26]} 8. a3 {[%clk 0:03:03]}  a5 {[%clk 0:02:24]} 9. d4 {[%clk 0:03:03]}  exd4 {[%clk 0:02:20]} 10. Nxd4 {[%clk 0:03:02]}  Nxd4 {[%clk 0:02:13]} 11. exd4 {[%clk 0:03:03]}  Bg4 {[%clk 0:02:09]} 12. Qd3 {[%clk 0:02:53]}  Bf5 {[%clk 0:02:02]} 13. Qd1 {[%clk 0:02:49]}  c6 {[%clk 0:02:02]} 14. Bf4 {[%clk 0:02:48]}  Re8 {[%clk 0:02:01]} 15. Qb3 {[%clk 0:02:48]}  Qd7 {[%clk 0:01:49]} 16. Rad1 {[%clk 0:02:46]}  Ne4 {[%clk 0:01:29]} 17. Nxe4 {[%clk 0:02:45]}  Bxe4 {[%clk 0:01:29]} 18. f3 {[%clk 0:02:40]}  Bf5 {[%clk 0:01:27]} 19. g4 {[%clk 0:02:40]}  Be6 {[%clk 0:01:23]} 20. d5 {[%clk 0:02:41]}  cxd5 {[%clk 0:01:21]} 21. cxd5 {[%clk 0:02:40]}  Bxg4 {[%clk 0:01:20]} 22. fxg4 {[%clk 0:02:40]}  Qxg4 {[%clk 0:01:21]} 23. Bxd6 {[%clk 0:02:39]}  Bd4+ {[%clk 0:01:02]} 24. Kh1 {[%clk 0:02:34]}  Re2 {[%clk 0:01:01]} 25. Qf3 {[%clk 0:02:34]}  Rxg2 {[%clk 0:00:22]} 26. Qxg2 {[%clk 0:02:32]}  Qh4 {[%clk 0:00:22]} 27. Bg3 {[%clk 0:02:28]}  Qg4 {[%clk 0:00:10]} 28. h3 {[%clk 0:02:26]} 1-0

[Event "December 19 Late 2023"]
[Site "https://www.chess.com"]
[Date "2023.12.19"]
[Round "3"]
[White "Azar, Sebastien"]
[Black "Estrada Nieto, Julian"]
[Result "0-1"]
[Board "95"]
[TimeControl "180+1"]
[WhiteFideId "2640198"]
[BlackFideId "5101018"]
[WhiteElo "2399"]
[BlackElo "2161"]
[WhiteTeam "CAN"]
[BlackTeam "ESP"]
[WhiteClock "0:00:05"]
[BlackClock "0:00:27"]

1. e4 {[%clk 0:03:00]}  e5 {[%clk 0:02:59]} 2. Nf3 {[%clk 0:03:00]}  Nc6 {[%clk 0:02:59]} 3. Bb5 {[%clk 0:03:00]}  a6 {[%clk 0:02:59]} 4. Ba4 {[%clk 0:03:00]}  Nf6 {[%clk 0:02:59]} 5. d3 {[%clk 0:03:00]}  d6 {[%clk 0:02:58]} 6. O-O {[%clk 0:02:59]}  g6 {[%clk 0:02:58]} 7. c3 {[%clk 0:02:58]}  Bg7 {[%clk 0:02:58]} 8. h3 {[%clk 0:02:56]}  O-O {[%clk 0:02:58]} 9. Bc2 {[%clk 0:02:51]}  h6 {[%clk 0:02:55]} 10. a4 {[%clk 0:02:47]}  Re8 {[%clk 0:02:54]} 11. Be3 {[%clk 0:02:43]}  d5 {[%clk 0:02:54]} 12. Qd2 {[%clk 0:02:26]}  Kh7 {[%clk 0:02:52]} 13. Rd1 {[%clk 0:02:05]}  Be6 {[%clk 0:02:49]} 14. Na3 {[%clk 0:02:03]}  Qd7 {[%clk 0:02:47]} 15. b4 {[%clk 0:01:59]}  Nh5 {[%clk 0:02:21]} 16. exd5 {[%clk 0:01:49]}  Bxd5 {[%clk 0:02:19]} 17. Nh2 {[%clk 0:01:43]}  Nf4 {[%clk 0:02:15]} 18. f3 {[%clk 0:01:19]}  h5 {[%clk 0:02:02]} 19. b5 {[%clk 0:01:07]}  axb5 {[%clk 0:02:01]} 20. axb5 {[%clk 0:01:03]}  Ne7 {[%clk 0:01:58]} 21. Bxf4 {[%clk 0:00:54]}  exf4 {[%clk 0:01:58]} 22. d4 {[%clk 0:00:54]}  Bh6 {[%clk 0:01:49]} 23. c4 {[%clk 0:00:50]}  Be6 {[%clk 0:01:49]} 24. d5 {[%clk 0:00:43]}  Bf5 {[%clk 0:01:50]} 25. Bxf5 {[%clk 0:00:42]}  Nxf5 {[%clk 0:01:50]} 26. Nc2 {[%clk 0:00:42]}  Ne3 {[%clk 0:01:40]} 27. Re1 {[%clk 0:00:35]}  Qd6 {[%clk 0:01:30]} 28. Nf1 {[%clk 0:00:28]}  Nxc4 {[%clk 0:01:18]} 29. Rxa8 {[%clk 0:00:21]}  Nxd2 {[%clk 0:01:02]} 30. Raxe8 {[%clk 0:00:14]}  Qc5+ {[%clk 0:01:02]} 31. Kh1 {[%clk 0:00:08]}  Nxf1 {[%clk 0:01:02]} 32. Rxf1 {[%clk 0:00:05]}  Qxc2 {[%clk 0:01:02]} 33. Rfe1 {[%clk 0:00:05]}  Bg5 {[%clk 0:00:57]} 34. R8e2 {[%clk 0:00:02]}  Qf5 {[%clk 0:00:57]} 35. Re5 {[%clk 0:00:02]}  Qf6 {[%clk 0:00:56]} 36. R5e4 {[%clk 0:00:02]}  Bh4 {[%clk 0:00:55]} 37. Rd1 {[%clk 0:00:02]}  Qd6 {[%clk 0:00:52]} 38. Rc1 {[%clk 0:00:01]}  Be7 {[%clk 0:00:47]} 39. Rec4 {[%clk 0:00:01]}  Bd8 {[%clk 0:00:46]} 40. Re4 {[%clk 0:00:01]}  Qxd5 {[%clk 0:00:45]} 41. Rec4 {[%clk 0:00:01]}  g5 {[%clk 0:00:43]} 42. Re4 {[%clk 0:00:01]}  Kg6 {[%clk 0:00:42]} 43. Rec4 {[%clk 0:00:01]}  Qxb5 {[%clk 0:00:41]} 44. R4c2 {[%clk 0:00:02]}  c6 {[%clk 0:00:41]} 45. Rc4 {[%clk 0:00:02]}  Bf6 {[%clk 0:00:41]} 46. Rc5 {[%clk 0:00:02]}  Qb2 {[%clk 0:00:40]} 47. R5c2 {[%clk 0:00:03]}  Qe5 {[%clk 0:00:40]} 48. Rd2 {[%clk 0:00:03]}  c5 {[%clk 0:00:40]} 49. Rdc2 {[%clk 0:00:03]}  b6 {[%clk 0:00:40]} 50. Kg1 {[%clk 0:00:04]}  Qe3+ {[%clk 0:00:38]} 51. Kh2 {[%clk 0:00:04]}  Bd4 {[%clk 0:00:38]} 52. Rb1 {[%clk 0:00:03]}  Qd3 {[%clk 0:00:35]} 53. Rcc1 {[%clk 0:00:03]}  b5 {[%clk 0:00:34]} 54. Rd1 {[%clk 0:00:03]}  Qf5 {[%clk 0:00:34]} 55. Rdc1 {[%clk 0:00:03]}  b4 {[%clk 0:00:34]} 56. Rd1 {[%clk 0:00:02]}  Qd5 {[%clk 0:00:34]} 57. Re1 {[%clk 0:00:02]}  b3 {[%clk 0:00:34]} 58. Re4 {[%clk 0:00:02]}  c4 {[%clk 0:00:34]} 59. Rd1 {[%clk 0:00:02]}  b2 {[%clk 0:00:34]} 60. Rdxd4 {[%clk 0:00:02]}  Qxd4 {[%clk 0:00:34]} 61. Rxd4 {[%clk 0:00:03]}  b1=Q {[%clk 0:00:34]} 62. Rxc4 {[%clk 0:00:03]}  Qf5 {[%clk 0:00:33]} 63. Rc6+ {[%clk 0:00:03]}  f6 {[%clk 0:00:32]} 64. Rc7 {[%clk 0:00:03]}  Qe5 {[%clk 0:00:32]} 65. Rc8 {[%clk 0:00:03]}  Qe2 {[%clk 0:00:32]} 66. Rg8+ {[%clk 0:00:03]}  Kf7 {[%clk 0:00:32]} 67. Rc8 {[%clk 0:00:03]}  g4 {[%clk 0:00:32]} 68. hxg4 {[%clk 0:00:04]}  hxg4 {[%clk 0:00:32]} 69. Rc7+ {[%clk 0:00:03]}  Kg6 {[%clk 0:00:31]} 70. fxg4 {[%clk 0:00:01]}  f3 {[%clk 0:00:32]} 71. Kh3 {[%clk 0:00:01]}  Qxg2+ {[%clk 0:00:32]} 72. Kh4 {[%clk 0:00:01]}  f2 {[%clk 0:00:32]} 73. Rc1 {[%clk 0:00:01]}  f1=Q {[%clk 0:00:31]} 74. Rxf1 {[%clk 0:00:01]}  Qxf1 {[%clk 0:00:31]} 75. Kg3 {[%clk 0:00:02]}  Qg1+ {[%clk 0:00:32]} 76. Kh3 {[%clk 0:00:03]}  f5 {[%clk 0:00:31]} 77. gxf5+ {[%clk 0:00:03]}  Kxf5 {[%clk 0:00:30]} 78. Kh4 {[%clk 0:00:04]}  Kf4 {[%clk 0:00:30]} 79. Kh5 {[%clk 0:00:05]}  Qg5# {[%clk 0:00:27]} 0-1